bitfinex-derivatives/quotes_SOLF0:USTF0_20241025
["timestamp","ask_amount","ask_price","bid_price","bid_amount"]
[1729898500580,34.45990909,161.93,161.77,1.13674863]
[1729898500871,34.45990909,161.93,161.79,34.45990909]
[1729898501082,34.45990909,161.96,161.73,47.81990909]
[1729898501083,34.45990909,161.96,161.82,34.45990909]
[1729898501264,34.45990909,161.99,161.85,34.45990909]
[1729898501468,34.45990909,162.02,161.88,34.45990909]
[1729898501779,34.45990909,162.04,161.91,34.45990909]
[1729898501978,34.45990909,162.07,161.94,34.45990909]
[1729898502286,34.45990909,162.14,161.97,34.45990909]
[1729898502480,34.45990909,162.14,162.0,34.45990909]
[1729898502687,34.45990909,162.14,162.01,14.28]
[1729898502981,34.45990909,162.17,162.02,34.45990909]
[1729898503283,34.45990909,162.11,162.01,14.28]
[1729898503774,34.45990909,162.14,162.01,14.28]
[1729898503980,34.45990909,162.22,162.08,34.45990909]
[1729898504280,3.0873,162.21,162.12,3.0887]
[1729898504479,34.45990909,162.19,162.07,60.02]
[1729898504684,34.45990909,162.17,162.07,74.8]
[1729898504878,34.45990909,162.23,162.07,74.8]
[1729898504879,34.45990909,162.23,162.08,34.45990909]
[1729898505074,34.45990909,162.25,162.11,34.45990909]
[1729898505684,34.45990909,162.2,162.08,4.3866]
[1729898505890,34.45990909,162.17,162.08,4.3866]
[1729898506084,3.0886,162.14,162.07,74.8]
[1729898506337,34.45990909,162.23,162.08,34.45990909]
[1729898506975,34.45990909,162.23,162.07,74.8]
[1729898506976,34.45990909,162.18,162.07,74.8]
[1729898507189,34.45990909,162.23,162.07,74.8]
[1729898507190,34.45990909,162.15,162.07,74.8]
[1729898507489,34.45990909,162.23,162.07,74.8]
[1729898507674,34.45990909,162.23,162.08,34.45990909]
[1729898507877,34.45990909,162.23,162.09,3.0893]
[1729898508094,34.45990909,162.18,162.07,74.8]
[1729898508382,3.0883,162.16,162.07,74.8]
[1729898508575,34.45990909,162.17,162.07,74.8]
[1729898508781,34.45990909,162.09,161.69,575.0]
[1729898508976,34.45990909,161.94,161.88,3.0933]
[1729898509177,18.49,162.19,161.86,34.45990909]
[1729898509386,34.45990909,162.0,161.86,34.45990909]
[1729898509681,34.45990909,161.94,161.81,2.2756]
[1729898509904,34.45990909,161.92,161.81,2.2756]
[1729898510092,34.45990909,161.89,161.81,2.2756]
[1729898510276,34.45990909,161.89,161.77,4.4411]
[1729898510480,34.45990909,161.98,161.77,4.4411]
[1729898510481,34.45990909,161.86,161.78,3.0954]
[1729898510680,34.45990909,161.9,161.77,4.4411]
[1729898510887,34.45990909,161.92,161.78,34.45990909]
[1729898511079,3.0929,161.91,161.8,3.0948]
[1729898511282,34.45990909,161.87,161.77,4.4411]
[1729898511583,34.45990909,161.98,161.71,60.02]
[1729898511584,37.55490909,161.81,161.71,63.1166]
[1729898511979,34.45990909,161.81,161.71,60.02]
[1729898512388,34.45990909,161.79,161.67,4.3782]
[1729898512873,34.45990909,161.79,161.71,3.0966]
[1729898513292,34.45990909,161.9,161.67,4.3782]
[1729898513293,34.45990909,161.81,161.67,4.3782]
[1729898513474,34.45990909,161.78,161.67,4.3782]
[1729898513682,34.45990909,161.75,161.67,4.3782]
[1729898513880,176.12114056,162.0,161.68,18.42]
[1729898514079,18.49,162.11,161.77,34.45990909]
[1729898514279,34.45990909,161.91,161.74,34.45990909]
[1729898514480,34.45990909,161.91,161.75,60.08]
[1729898514682,34.45990909,161.88,161.75,60.08]
[1729898515485,34.45990909,161.86,161.75,60.08]
[1729898515781,34.45990909,161.86,161.71,34.45990909]
[1729898516078,34.45990909,161.88,161.74,34.45990909]
[1729898516284,34.45990909,161.95,161.8,34.45990909]
[1729898516484,3.0922,161.95,161.86,3.0938]
[1729898516786,34.45990909,161.95,161.81,2.3293]
[1729898517583,34.45990909,161.98,161.83,34.45990909]
[1729898517780,34.45990909,161.98,161.81,2.3293]
[1729898517781,34.45990909,162.01,161.88,34.45990909]
[1729898518093,3.0907,162.03,161.95,3.092]
[1729898518285,34.45990909,162.04,161.88,34.45990909]
[1729898518486,34.45990909,162.04,161.91,34.45990909]
[1729898518785,34.45990909,162.04,161.88,34.45990909]
[1729898518988,34.45990909,162.01,161.88,34.45990909]
[1729898519197,34.45990909,161.98,161.83,34.45990909]
[1729898519389,34.45990909,161.95,161.83,34.45990909]
[1729898519582,34.45990909,161.98,161.85,34.45990909]
[1729898519798,34.45990909,162.01,161.88,34.45990909]
[1729898520094,34.45990909,162.01,161.82,4.5089]
[1729898520095,34.45990909,162.04,161.91,34.45990909]
[1729898520310,34.45990909,162.07,161.94,34.45990909]
[1729898520483,34.45990909,162.13,162.0,34.45990909]
[1729898520688,94.53990909,162.23,162.0,34.45990909]
[1729898520689,3.0887,162.14,162.05,3.0901]
[1729898520990,34.45990909,162.1,161.95,4.5441]
[1729898521192,3.0906,162.03,161.95,4.5441]
[1729898521401,34.45990909,162.05,161.95,2.3179]
[1729898521982,2.2238,162.12,161.95,2.3179]
[1729898521983,34.45990909,162.07,161.95,2.3179]
[1729898522294,34.45990909,162.13,162.02,3.0907]
[1729898522485,34.45990909,162.13,161.98,34.45990909]
[1729898522687,34.45990909,162.1,161.96,96.80250909]
[1729898522985,34.45990909,162.07,161.96,62.3426]
[1729898523295,34.45990909,162.0,161.84,34.45990909]
[1729898523486,34.45990909,162.0,161.73,34.45990909]
[1729898523487,34.45990909,161.97,161.83,2.261]
[1729898523989,2.2238,162.06,161.86,34.45990909]
[1729898524215,34.45990909,162.03,161.9,34.45990909]
[1729898524695,2.2238,162.06,161.85,60.08]
[1729898524696,34.45990909,162.0,161.85,60.08]
[1729898524890,34.45990909,162.04,161.87,34.45990909]
[1729898525095,34.45990909,162.01,161.85,60.08]
[1729898525291,34.45990909,161.95,161.85,60.08]
[1729898525595,34.45990909,161.92,161.83,2.261]
[1729898525786,34.45990909,161.89,161.78,2.2626]
[1729898525987,3.0954,161.78,161.74,2.1908]
[1729898526191,34.45990909,161.84,161.74,2.1908]
[1729898526384,40.64310909,161.98,161.74,2.1908]
[1729898526385,34.45990909,161.87,161.74,2.1908]
[1729898526586,34.45990909,161.89,161.75,34.45990909]
[1729898526888,34.45990909,161.92,161.75,34.45990909]
[1729898527086,34.45990909,161.86,161.74,2.1908]
[1729898527287,34.45990909,161.8,161.68,2.3132]
[1729898527489,34.45990909,161.77,161.65,2.1665]
[1729898527788,34.45990909,161.71,161.59,36.61480909]
[1729898527988,34.45990909,161.68,161.56,34.45990909]
[1729898528190,34.45990909,161.68,161.54,62.2465]
[1729898528191,3.0981,161.64,161.54,62.2465]
[1729898528493,34.45990909,161.68,161.54,2.1665]
[1729898528692,34.80451562,161.59,161.32,60.1]
[1729898528886,34.80451562,161.58,161.33,1.13929117]
[1729898529090,34.80451562,161.34,161.04,575.0]
[1729898529294,34.80451562,161.28,161.1,34.80451562]
[1729898529489,34.80451562,161.28,161.05,60.1]
[1729898529694,34.80451562,161.33,161.12,34.80451562]
[1729898529890,34.80451562,161.33,161.11,1.0]
[1729898530091,34.80451562,161.33,161.02,34.80451562]
[1729898530295,34.80451562,161.26,161.13,1.0]
[1729898530604,34.80451562,161.19,161.13,1.0]
[1729898530803,34.80451562,161.33,161.06,2.99845041]
[1729898530804,34.80451562,161.22,161.06,2.99845041]
[1729898531191,34.80451562,161.26,161.07,34.80451562]
[1729898531486,34.80451562,161.26,161.1,34.80451562]
[1729898531690,34.80451562,161.26,161.06,2.99845041]
[1729898531885,3.1056,161.25,161.12,3.1081]
[1729898532087,34.80451562,161.26,161.06,2.99845041]
[1729898532290,34.80451562,161.22,161.06,37.80296603]
[1729898532695,34.80451562,161.19,161.06,2.99845041]
[1729898532895,34.80451562,161.25,161.06,2.99845041]
[1729898532896,34.80451562,161.16,161.06,2.99845041]
[1729898534093,34.80451562,161.13,161.06,2.99845041]
[1729898534298,37.91251562,161.13,161.06,2.99845041]
[1729898534595,34.80451562,161.13,161.06,2.99845041]
[1729898535002,3.1078,161.14,161.06,2.99845041]
[1729898535296,34.80451562,161.16,161.06,2.99845041]
[1729898535494,34.80451562,161.19,161.06,2.99845041]
[1729898535715,18.49,161.45,161.15,34.80451562]
[1729898535904,34.80451562,161.26,161.15,60.24]
[1729898536599,3.106,161.23,161.15,60.24]
[1729898536795,34.80451562,161.26,161.15,60.24]
[1729898536993,34.80451562,161.29,161.15,60.24]
[1729898538303,34.80451562,161.32,161.18,3.1068]
[1729898538503,34.80451562,161.32,161.15,60.24]
[1729898538708,34.80451562,161.23,161.06,2.99845041]
[1729898538894,34.80451562,161.18,161.06,2.99845041]
[1729898539095,18.49,161.41,161.06,2.99845041]
[1729898539293,34.80451562,161.33,161.06,2.99845041]
[1729898539504,34.80451562,161.22,161.06,2.99845041]
[1729898539716,34.80451562,161.19,161.06,2.99845041]
[1729898539911,34.80451562,161.13,161.06,2.99845041]
[1729898540103,34.80451562,161.1,161.06,2.99845041]
[1729898540403,34.80451562,161.07,160.91,2.1761]
[1729898540599,34.80451562,161.01,160.85,34.80451562]
[1729898540804,34.80451562,160.98,160.84,60.32]
[1729898541199,3.1102,161.0,160.85,34.80451562]
[1729898541512,34.80451562,161.16,160.88,34.80451562]
[1729898541705,3.1089,161.06,160.94,34.80451562]
[1729898542000,34.80451562,161.13,160.84,60.32]
[1729898542201,34.80451562,161.13,160.97,34.80451562]
[1729898542424,34.80451562,161.2,161.03,34.80451562]
[1729898542615,34.80451562,161.16,161.0,34.80451562]
[1729898542795,34.80451562,161.14,161.03,3.1094]
[1729898542995,34.80451562,161.14,160.98,60.32]
[1729898543296,34.80451562,161.07,160.88,180.36641561]
[1729898543500,34.80451562,161.04,160.91,34.80451562]
[1729898543704,34.80451562,160.94,160.58,45.55688742]
[1729898543902,34.80451562,160.98,160.78,34.80451562]
[1729898544097,34.80451562,160.9,160.66,63.6343]
[1729898544302,34.80451562,160.87,160.73,34.80451562]
[1729898544497,34.80451562,160.9,160.76,34.80451562]
[1729898544705,34.80451562,160.9,160.66,63.6343]
[1729898544913,34.80451562,160.93,160.77,34.80451562]
[1729898545213,34.80451562,160.98,160.77,34.80451562]
[1729898545413,34.80451562,160.98,160.8,34.80451562]
[1729898545622,34.80451562,160.98,160.83,34.80451562]
[1729898545803,18.49,161.15,160.89,34.80451562]
[1729898545999,6.2095,161.28,160.83,34.80451562]
[1729898546000,34.80451562,161.14,160.96,34.80451562]
[1729898546206,34.80451562,161.33,161.02,34.80451562]
[1729898546516,34.80451562,161.33,160.97,60.34]
[1729898546517,34.80451562,161.22,161.05,34.80451562]
[1729898546704,34.80451562,161.33,161.08,34.80451562]
[1729898546705,34.80451562,161.25,161.08,34.80451562]
[1729898546909,34.80451562,161.25,161.11,34.80451562]
[1729898547138,34.80451562,161.19,160.97,60.34]
[1729898547509,34.80451562,161.19,161.02,34.80451562]
[1729898548217,34.80451562,161.25,161.06,34.80451562]
[1729898548709,34.80451562,161.18,160.98,1.0]
[1729898548910,34.80451562,161.16,160.98,35.80451562]
[1729898549107,34.80451562,161.19,161.02,34.80451562]
[1729898549306,34.80451562,161.26,161.09,34.80451562]
[1729898549512,34.80451562,161.21,161.06,34.80451562]
[1729898549911,34.80451562,161.21,160.97,60.34]
[1729898549912,34.80451562,161.21,161.03,34.80451562]
[1729898550106,34.80451562,161.17,160.97,60.34]
[1729898550310,34.80451562,161.12,160.97,60.34]
[1729898551027,34.80451562,161.16,160.98,34.80451562]
[1729898551209,34.80451562,161.14,160.98,34.80451562]
[1729898551412,34.80451562,161.17,160.97,60.34]
[1729898551606,34.80451562,161.17,161.0,34.80451562]
[1729898552006,34.80451562,161.2,161.03,34.80451562]
[1729898552207,34.80451562,161.26,161.09,34.80451562]
[1729898552516,34.80451562,161.31,161.15,34.80451562]
[1729898552741,34.80451562,161.31,161.09,34.80451562]
[1729898552742,34.80451562,161.34,161.18,34.80451562]
[1729898552975,34.80451562,161.3,161.24,3.1053]
[1729898553209,34.80451562,161.3,161.1,2.1727]
[1729898553210,34.80451562,161.33,161.17,34.80451562]
[1729898553413,34.80451562,161.27,161.22,3.1058]
[1729898553615,34.80451562,161.33,161.17,34.80451562]
[1729898554204,34.80451562,161.36,161.2,34.80451562]
[1729898554404,34.80451562,161.36,161.2,95.16451562]
[1729898554610,34.80451562,161.39,161.23,34.80451562]
[1729898554805,34.80451562,161.43,161.27,34.80451562]
[1729898555004,34.80451562,161.34,161.31,3.1039]
[1729898555205,34.80451562,161.33,161.18,2.1577]
[1729898555419,34.80451562,161.23,161.1,60.36]
[1729898555620,34.80451562,161.26,161.1,34.80451562]
[1729898555806,34.80451562,161.29,161.13,34.80451562]
[1729898556006,34.80451562,161.29,161.17,3.1066]
[1729898556217,3.1038,161.33,161.11,1.0]
[1729898556218,34.80451562,161.18,161.11,1.0]
[1729898556416,34.80451562,161.25,160.91,60.34]
[1729898556721,34.80451562,161.11,160.94,34.80451562]
[1729898557011,34.80451562,161.25,161.03,3.1094]
[1729898557012,34.80451562,161.14,161.03,3.1094]
[1729898557230,34.80451562,161.05,160.91,60.34]
[1729898557416,34.80451562,161.03,160.83,34.80451562]
[1729898557613,173.0,161.22,160.9,34.80451562]
[1729898557818,34.80451562,161.03,160.87,34.80451562]
[1729898558021,34.80451562,160.99,160.84,35.80451562]
[1729898558223,34.80451562,161.08,160.9,34.80451562]
[1729898558417,34.80451562,161.02,160.84,1.14303836]
[1729898558610,34.80451562,161.08,160.91,34.80451562]
[1729898558924,34.80451562,161.16,160.98,34.80451562]
[1729898559108,37.91321562,161.08,160.98,3.1104]
[1729898559311,34.80451562,161.08,160.92,34.80451562]
[1729898559638,34.80451562,161.05,160.89,34.80451562]
[1729898559816,34.80451562,161.02,160.86,34.80451562]
[1729898560111,34.80451562,161.08,160.84,1.14303836]
[1729898560112,34.80451562,160.96,160.84,1.14303836]
[1729898560315,34.80451562,160.93,160.84,1.14303836]
[1729898560516,34.80451562,161.02,160.84,35.94755398]
[1729898560815,34.80451562,161.04,160.81,33.3885696]
[1729898561017,34.80451562,161.08,160.91,34.80451562]
[1729898561221,34.80451562,161.02,160.85,35.80451562]
[1729898561416,3.11,161.01,160.85,34.80451562]
[1729898561616,34.80451562,160.96,160.82,34.80451562]
[1729898562020,34.80451562,160.96,160.81,33.3885696]
[1729898562217,34.80451562,160.91,160.77,180.50396557]
[1729898562538,34.80451562,160.85,160.77,183.61846557]
[1729898562726,34.80451562,160.85,160.77,180.50396557]
[1729898563019,34.80451562,160.79,160.59,68.8321]
[1729898563215,34.80451562,160.74,160.59,60.4]
[1729898563626,34.80451562,160.71,160.59,60.4]
[1729898564119,34.80451562,160.69,160.58,7.59672244]
[1729898564318,34.80451562,160.74,160.58,7.59672244]
[1729898564618,34.80451562,160.71,160.58,7.59672244]
[1729898564820,34.80451562,160.68,160.58,7.59672244]
[1729898565115,34.80451562,160.62,160.58,7.59672244]
[1729898565709,34.80451562,160.68,160.58,7.59672244]
[1729898565710,34.80451562,160.59,160.58,7.59672244]
[1729898565922,95.24451562,160.76,160.49,3.1199]
[1729898566121,60.44,160.8,160.52,34.80451562]
[1729898566310,34.80451562,160.69,160.55,34.80451562]
[1729898566619,34.80451562,160.6,160.4,2.48752518]
[1729898566926,34.80451562,160.66,160.49,34.80451562]
[1729898567119,3.1171,160.64,160.54,3.1189]
[1729898567418,34.80451562,160.64,160.47,34.80451562]
[1729898567625,34.80451562,160.55,160.4,2.48752518]
[1729898568731,34.80451562,160.52,160.4,2.48752518]
[1729898568918,34.80451562,160.5,160.4,2.48752518]
[1729898569224,3.1204,160.47,160.4,2.48752518]
[1729898569417,34.80451562,160.5,160.4,2.48752518]
[1729898569619,34.80451562,160.53,160.4,2.48752518]
[1729898569828,34.80451562,160.41,160.06,6.2566]
[1729898570015,34.80451562,160.39,160.24,34.80451562]
[1729898570219,34.80451562,160.37,160.09,2.3068]
[1729898570427,34.80451562,160.33,160.18,34.80451562]
[1729898570716,34.80451562,160.39,160.24,34.80451562]
[1729898570926,18.49,160.58,160.34,34.80451562]
[1729898571230,34.80451562,160.68,160.19,2.2773]
[1729898571231,34.80451562,160.53,160.19,2.2773]
[1729898571424,34.80451562,160.56,160.38,34.80451562]
[1729898571613,34.80451562,160.56,160.36,34.80451562]
[1729898571818,34.80451562,160.59,160.44,34.80451562]
[1729898572021,34.80451562,160.56,160.41,34.80451562]
[1729898572320,34.80451562,160.53,160.36,34.80451562]
[1729898572515,34.80451562,160.53,160.43,3.1211]
[1729898572717,34.80451562,160.47,160.32,34.80451562]
[1729898572925,34.80451562,160.41,160.22,34.80451562]
[1729898573220,34.80451562,160.43,160.26,34.80451562]
[1729898573422,34.80451562,160.43,160.24,1.0]
[1729898573624,60.54,160.52,160.24,1.0]
[1729898573939,60.58,160.66,160.36,34.80451562]
[1729898574121,34.80451562,160.49,160.25,2.1669]
[1729898574317,34.80451562,160.4,160.23,37.92073463]
[1729898574517,2.1951,160.58,160.41,3.1214]
[1729898574721,235.6,160.71,160.23,3.11621901]
[1729898574722,60.58,160.7,160.23,3.11621901]
[1729898574924,18.49,160.69,160.23,3.11621901]
[1729898575121,3.119,160.54,160.23,3.11621901]
[1729898575321,60.58,160.72,160.23,3.11621901]
[1729898575525,60.58,160.72,160.33,34.80451562]
[1729898575821,60.58,160.72,160.26,34.80451562]
[1729898575822,34.80451562,160.54,160.37,34.80451562]
[1729898576124,34.80451562,160.57,160.4,34.80451562]
[1729898576333,34.80451562,160.76,160.5,34.80451562]
[1729898576519,34.80451562,160.7,160.53,34.80451562]
[1729898576721,34.80451562,160.73,160.56,34.80451562]
[1729898576921,34.80451562,160.76,160.51,2.3142]
[1729898577117,34.80451562,160.79,160.61,34.80451562]
[1729898577317,34.80451562,160.79,160.64,34.80451562]
[1729898577520,34.80451562,160.76,160.63,60.6]
[1729898577724,34.80451562,160.73,160.63,60.6]
[1729898578028,34.80451562,160.69,160.51,34.80451562]
[1729898578233,34.80451562,160.72,160.56,3.1185]
[1729898578435,34.80451562,160.77,160.61,34.80451562]
[1729898578628,34.80451562,160.74,160.58,34.80451562]
[1729898578932,34.80451562,160.71,160.54,34.80451562]
[1729898579130,34.80451562,160.68,160.51,34.80451562]
[1729898579324,34.80451562,160.74,160.54,34.80451562]
[1729898579325,34.80451562,160.71,160.54,34.80451562]
[1729898579627,34.80451562,160.74,160.49,34.80451562]
[1729898579825,34.80451562,160.68,160.49,34.80451562]
[1729898580128,34.80451562,160.68,160.53,34.80451562]
[1729898580343,34.80451562,160.76,160.56,34.80451562]
[1729898580928,34.80451562,160.76,160.54,1.0]
[1729898580929,34.80451562,160.69,160.54,1.0]
[1729898581127,34.80451562,160.73,160.55,34.80451562]
[1729898581830,34.80451562,160.72,160.56,34.80451562]
[1729898582028,34.80451562,160.69,160.53,34.80451562]
[1729898582236,34.80451562,160.66,160.5,34.80451562]
[1729898582531,34.80451562,160.69,160.53,34.80451562]
[1729898582726,34.80451562,160.72,160.57,34.80451562]
[1729898582927,34.80451562,160.69,160.48,60.58]
[1729898583226,34.80451562,160.69,160.52,34.80451562]
[1729898583433,34.80451562,160.65,160.47,34.80451562]
[1729898583629,34.80451562,160.64,160.47,34.80451562]
[1729898583825,34.80451562,160.61,160.45,2.3071]
[1729898584132,34.80451562,160.68,160.45,2.3071]
[1729898584133,34.80451562,160.63,160.45,2.3071]
[1729898584332,34.80451562,160.63,160.47,34.80451562]
[1729898584534,34.80451562,160.68,160.5,34.80451562]
[1729898584731,34.80451562,160.72,160.53,34.80451562]
[1729898584922,34.80451562,160.72,160.54,60.58]
[1729898585123,34.80451562,160.62,160.54,60.58]
[1729898585330,34.80451562,160.62,160.45,37.11161562]
[1729898585531,34.80451562,160.69,160.51,34.80451562]
[1729898585731,34.80451562,160.63,160.48,34.80451562]
[1729898585925,34.80451562,160.63,160.46,1.0]
[1729898586135,34.80451562,160.63,160.45,37.11161562]
[1729898586332,34.80451562,160.61,160.45,2.3071]
[1729898586531,3.1178,160.6,160.5,3.1197]
[1729898586720,34.80451562,160.64,160.46,34.80451562]
[1729898586921,34.80451562,160.64,160.49,34.80451562]
[1729898587140,34.80451562,160.76,160.45,2.3071]
[1729898587141,34.80451562,160.63,160.46,34.80451562]
[1729898587332,34.80451562,160.65,160.49,34.80451562]
[1729898587925,34.80451562,160.84,160.58,34.80451562]
[1729898588125,34.80451562,160.84,160.61,34.80451562]
[1729898588126,34.80451562,160.76,160.61,34.80451562]
[1729898588345,34.80451562,160.84,160.59,60.56]
[1729898588346,34.80451562,160.79,160.6,2.1684]
[1729898588527,34.80451562,160.79,160.62,34.80451562]
[1729898589034,34.80451562,160.73,160.63,2.2281]
[1729898589331,34.80451562,160.79,160.63,2.2281]
[1729898589522,34.80451562,160.73,160.63,2.2281]
[1729898590132,34.80451562,160.69,160.6,2.1684]
[1729898590330,34.80451562,160.73,160.6,2.1684]
[1729898590537,34.80451562,160.69,160.54,34.80451562]
[1729898590841,34.80451562,160.73,160.57,34.80451562]
[1729898591030,34.80451562,160.73,160.6,34.80451562]
[1729898591233,34.80451562,160.67,160.55,1.0]
[1729898591631,34.80451562,160.63,160.55,1.0]
[1729898591838,34.80451562,160.67,160.49,34.80451562]
[1729898592038,34.80451562,160.67,160.51,34.80451562]
[1729898592442,34.80451562,160.67,160.47,60.56]
[1729898592631,34.80451562,160.67,160.51,3.1195]
[1729898592632,34.80451562,160.62,160.51,3.1195]
[1729898592841,34.80451562,160.59,160.47,60.56]
[1729898593033,34.80451562,160.56,160.27,2.2253]
[1729898593332,34.80451562,160.56,160.41,34.80451562]
[1729898593528,34.80451562,160.59,160.41,34.80451562]
[1729898594036,34.80451562,160.59,160.44,34.80451562]
[1729898594242,34.80451562,160.59,160.44,95.36451562]
[1729898594447,34.80451562,160.62,160.47,34.80451562]
[1729898594648,6.2277,160.81,160.44,60.56]
[1729898594649,3.1159,160.7,160.53,34.80451562]
[1729898594845,34.80451562,160.71,160.57,34.80451562]
[1729898595138,34.80451562,160.68,160.45,6.649]
[1729898595341,34.80451562,160.62,160.47,34.80451562]
[1729898595548,34.80451562,160.62,160.45,6.649]
[1729898595748,34.80451562,160.62,160.47,34.80451562]
[1729898595943,34.80451562,160.65,160.5,34.80451562]
[1729898596146,173.0,160.89,160.57,34.80451562]
[1729898596381,34.80451562,160.68,160.54,34.80451562]
[1729898596643,1.3984,160.9,160.5,34.80451562]
[1729898596845,34.80451562,160.77,160.61,34.80451562]
[1729898597144,34.80451562,160.71,160.62,60.58]
[1729898597354,34.80451562,160.71,160.56,60.58]
[1729898597548,34.80451562,160.74,160.45,6.649]
[1729898597549,34.80451562,160.62,160.45,2.254]
[1729898597734,34.80451562,160.68,160.42,34.80451562]
[1729898597735,34.80451562,160.59,160.42,34.80451562]
[1729898598142,34.80451562,160.51,160.33,2.1403]
[1729898598353,34.80451562,160.59,160.31,37.16251562]
[1729898598354,34.80451562,160.48,160.31,37.16251562]
[1729898598546,34.80451562,160.42,160.25,34.80451562]
[1729898598753,34.80451562,160.36,160.18,95.36451562]
[1729898598955,34.80451562,160.36,160.21,34.80451562]
[1729898599148,34.80451562,160.36,160.18,60.56]
[1729898599149,34.80451562,160.42,160.25,34.80451562]
[1729898599853,34.80451562,160.44,160.29,34.80451562]
[1729898600155,34.80451562,160.5,160.35,34.80451562]
[1729898600450,34.80451562,160.45,160.37,3.1221]
[1729898600655,34.80451562,160.45,160.34,60.56]
[1729898600953,37.92541562,160.44,160.33,3.1229]
[1729898601148,34.80451562,160.47,160.32,34.80451562]
[1729898601349,173.0,160.64,160.34,34.80451562]
[1729898601545,34.80451562,160.53,160.37,34.80451562]
[1729898601744,34.80451562,160.47,160.33,61.6]
[1729898602060,3.1201,160.48,160.37,3.1222]
[1729898602257,34.80451562,160.51,160.33,60.6]
[1729898602556,37.92491562,160.46,160.35,3.1224]
[1729898602749,34.80451562,160.44,160.33,60.6]
[1729898603148,3.1213,160.42,160.33,60.6]
[1729898603452,34.80451562,160.46,160.33,60.6]
[1729898603651,34.80451562,160.51,160.37,34.80451562]
[1729898603953,34.80451562,160.51,160.34,34.80451562]
[1729898604152,34.80451562,160.51,160.35,3.1225]
[1729898604153,37.92531562,160.44,160.35,3.1225]
[1729898604450,34.80451562,160.44,160.28,34.80451562]
[1729898604659,37.92531562,160.44,160.36,3.1223]
[1729898604857,34.80451562,160.47,160.31,34.80451562]
[1729898605173,3.1185,160.55,160.45,3.1203]
[1729898605360,34.80451562,160.57,160.43,34.80451562]
[1729898605659,34.80451562,160.68,160.58,3.1179]
[1729898605660,37.92071562,160.68,160.58,3.1179]
[1729898605860,34.80451562,160.71,160.42,34.80451562]
[1729898606072,34.80451562,160.76,160.62,34.80451562]
[1729898606264,34.80451562,160.79,160.64,34.80451562]
[1729898606454,34.80451562,160.82,160.64,34.80451562]
[1729898606659,34.80451562,160.92,160.64,34.80451562]
[1729898606660,34.80451562,160.79,160.64,34.80451562]
[1729898607056,34.80451562,160.77,160.63,39.37381562]
[1729898607260,34.80451562,160.77,160.63,4.5693]
[1729898607459,34.80451562,160.72,160.62,60.62]
[1729898607775,6.2215,160.96,160.61,34.80451562]
[1729898607959,34.80451562,160.92,160.61,34.80451562]
[1729898608259,34.80451562,160.92,160.58,34.80451562]
[1729898608260,34.80451562,160.78,160.66,3.1163]
[1729898608468,34.80451562,160.78,160.61,34.80451562]
[1729898608661,34.80451562,160.67,160.44,1.0]
[1729898608857,34.80451562,160.67,160.48,60.6]
[1729898609057,34.80451562,160.67,160.5,34.80451562]
[1729898609256,3.1158,160.69,160.57,3.1179]
[1729898609465,34.80451562,160.68,160.5,34.80451562]
[1729898609659,34.80451562,160.62,160.49,1.0]
[1729898609859,34.80451562,160.62,160.48,60.6]
[1729898609860,3.1173,160.62,160.5,3.1194]
[1729898610054,34.80451562,160.67,160.52,34.80451562]
[1729898610461,34.80451562,160.67,160.58,3.1179]
[1729898610667,173.0,160.9,160.61,34.80451562]
[1729898610986,36.32061562,160.92,160.48,60.6]
[1729898610987,34.80451562,160.64,160.53,3.2567]
[1729898611162,34.80451562,160.67,160.53,2.2567]
[1729898611576,34.80451562,160.64,160.48,95.40451562]
[1729898611870,34.80451562,160.58,160.48,60.6]
[1729898612068,34.80451562,160.56,160.37,60.6]
[1729898612261,34.80451562,160.59,160.37,62.9585]
[1729898612262,34.80451562,160.52,160.37,62.9585]
[1729898612463,34.80451562,160.52,160.41,3.1211]
[1729898612772,34.80451562,160.6,160.41,34.80451562]
[1729898612959,3.1177,160.59,160.47,3.1199]
[1729898613156,3.1177,160.59,160.37,62.9585]
[1729898613157,34.80451562,160.51,160.37,2.3585]
[1729898613366,34.80451562,160.48,160.37,2.3585]
[1729898613561,3.1205,160.45,160.37,2.3585]
[1729898613864,34.80451562,160.5,160.37,2.3585]
[1729898614063,34.80451562,160.41,160.27,60.6]
[1729898614266,34.80451562,160.36,160.2,34.80451562]
[1729898614472,34.80451562,160.33,160.19,4.508]
[1729898614794,34.80451562,160.3,160.16,60.6]
[1729898615072,34.80451562,160.43,160.16,95.40451562]
[1729898615263,3.1228,160.33,160.23,6.24081901]
[1729898615462,34.80451562,160.36,160.23,3.11621901]